Cogmind - Beta 15 @@@ ROGUE MODE // 2025.07.10 @ 20:34:13 Player: Stump Result: Destroyed by exploding Fusion Modulator Performance ------------- Evolutions (3) 1500 Regions Visited (4) 800 Robots Destroyed (32) 160 Value Destroyed (822) 822 Prototype IDs (4) 80 Alien Tech Used (0) 0 Bonus (0) 0 TOTAL SCORE: 3362 Bonus ------- None Cogmind --------- Core Integrity 0/700 Matter 300/300 Energy 143/300 System Corruption 4% Temperature Cool (54) Movement Core (50) Location -7/Factory Parts ------- > --- POWER (1) -------- (None) > --- PROPULSION (4) --- (None) > --- UTILITY (5) ------ Compact Battery > --- WEAPON (3) ------- (None) > --- INVENTORY (5) ---- Ion Engine Aluminum Leg Cooling System Large Matter Pod (39) Improved Field Recycling Unit (0) Peak State ------------ > --- POWER ------------ Light Nuclear Core > --- PROPULSION ------- Aluminum Leg Aluminum Leg Aluminum Leg Improved Carbon-fiber Leg > --- UTILITY ---------- Improved Cooling System Small Storage Unit Propulsion Shielding Makeshift Light Armor Plating > --- WEAPON ----------- Makeshift Laser Gauss Rifle Gauss Rifle > --- INVENTORY -------- Ion Engine Aluminum Leg Cooling System Compact Battery Large Matter Pod Improved Field Recycling Unit Heavy Ion Cannon Slug Cannon [Rating: 34] Favorites ----------- Power Ion Engine Engine Ion Engine Power Core Light Nuclear Core Propulsion Aluminum Leg Leg Aluminum Leg Utility Small Storage Unit Device Sensor Array Storage Small Storage Unit Processor Machine Analyzer Protection Makeshift Light Armor Plating Weapon Autogun Energy Gun Makeshift Laser Energy Cannon Heavy Ion Cannon Ballistic Gun Autogun Ballistic Cannon Slug Cannon Launcher Grenade Launcher Build | -11 -10 -10 -9 -7 ------- Run | Yrd Mat Sub Rec Fac Slots Evolved 6 | . . . . 6 Power . | . . . . . Propulsion 2 | . . . . 2 Utility 3 | . . . . 3 Weapon 1 | . . . . 1 Parts Attached 37 | 6 9 9 2 11 Power 7 | 1 2 2 1 1 Engine 6 | 1 2 2 1 . Core 1 | . . . . 1 Reactor . | . . . . . Propulsion 8 | 2 1 2 1 2 Treads . | . . . . . Leg 8 | 2 1 2 1 2 Wheel . | . . . . . Hover . | . . . . . Flight . | . . . . . Utility 10 | 1 3 2 . 4 Device 4 | . 2 . . 2 Storage 3 | 1 1 . . 1 Processor 1 | . . 1 . . Hackware . | . . . . . Protection 2 | . . 1 . 1 Artifact . | . . . . . Weapon 12 | 2 3 3 . 4 Energy Gun 2 | . . 2 . . Energy Cannon 1 | . . . . 1 Ballistic Gun 7 | 2 3 . . 2 Ballistic Cannon 1 | . . . . 1 Launcher 1 | . . 1 . . Special Weapon . | . . . . . Impact Weapon . | . . . . . Slashing Weapon . | . . . . . Piercing Weapon . | . . . . . Special Melee Weapon . | . . . . . Unidentified Prototypes . | . . . . . Parts Lost 18 | . 1 3 . 14 Power 2 | . 1 . . 1 Propulsion 4 | . . . . 4 Utility 5 | . . 1 . 4 Weapon 7 | . . 2 . 5 Highest Loss Streak 13 | . 1 1 . 13 To Critical Strikes . | . . . . . Average Backups 7 | 2 7 7 7 6 Power . | . . 1 1 1 Propulsion 1 | 1 2 . 1 . Utility 2 | . 3 3 2 3 Weapon 2 | . 1 2 3 1 Tool/Special . | . . . . . Unused Backups 8 | . 4 . 1 3 Power 1 | . . . . 1 Propulsion 2 | . 2 . . . Utility 4 | . 1 . 1 2 Weapon 1 | . 1 . . . Tool/Special . | . . . . . Average Slot Usage (%) 95 | . 97 98 100 81 Engine 12 | . 13 14 14 5 Leg 27 | . 27 28 28 26 Device 6 | . 12 . . 6 Storage 13 | . 14 14 14 7 Processor 1 | . . 6 . . Protection 5 | . . 6 14 13 Energy Gun 9 | . . 14 28 7 Ballistic Gun 15 | . 27 9 . 11 Peak Build Rating 34 | 6 9 16 16 34 Average Rating 12 | 5 8 12 16 26 On Entrance 9 | . 6 9 16 16 Naked Turns . | . . . . . Heaviest Build 30 | 13 17 20 22 30 Greatest Support 48 | 20 20 20 20 48 Greatest Overweight (x) 2 | 1 1 . 1 2 Average Overweight (x) . | . . . . . Largest Inventory Capacity 10 | 8 10 8 8 8 Average Capacity 7 | 7 8 8 8 7 Most Carried 8 | 4 8 8 8 8 Average Carried 7 | 2 7 7 7 6 Final Capacity 8 | 8 8 8 8 5 Final Carried 8 | 4 8 7 8 5 Class Distribution -------------------- 91% | Mutant 8% | Tank Dominant Class ---------------- Mutant | -10/Materials Mutant | -10/Subcaves Mutant | -9/Recycling Tank | -7/Factory Resources | -11 -10 -10 -9 -7 ----------- Run | Yrd Mat Sub Rec Fac Matter Collected 1441 | 215 546 261 189 230 Remotely . | . . . . . Salvage Created 922 | . 403 239 . 280 Parts 65 | . 31 24 . 10 Haulers Intercepted 2 | . 2 . . . Recyclers Shooed 2 | . . . . 2 Parts Field Recycled . | . . . . . Retrieved Matter . | . . . . . Parts Self-Destructed 13 | . . 13 . . Prevented . | . . . . . Kills | -11 -10 -10 -9 -7 ------- Run | Yrd Mat Sub Rec Fac Combat Hostiles Destroyed 26 | . 12 9 . 5 Guns 20 | . 12 6 . 2 Cannons 1 | . . . . 1 AOE 5 | . . 3 . 2 Classes Destroyed 9 | . 4 2 . 3 Hauler 2 | . 2 . . . Recycler 1 | . . . . 1 Turret 2 | . . 2 . . Watcher 1 | . 1 . . . Swarmer 12 | . 8 4 . . Grunt 9 | . 4 2 . 3 Brawler 1 | . . . . 1 Duelist 1 | . . . . 1 Subdweller 3 | . . 3 . . Best Kill Streak 6 | . 4 6 . 4 Combat Bots Only 6 | . 4 6 . 3 Max Kills in Single Turn 4 | . 1 4 . 3 Gunslinging . | . . . . . Exploded 3 | . . 3 . 2 Melee . | . . . . . Uniques/NPCs Destroyed . | . . . . . Combat | -11 -10 -10 -9 -7 -------- Run | Yrd Mat Sub Rec Fac Hostile Shots Fired 231 | . 47 99 . 85 Missed 67 | . 13 41 . 13 Hits 164 | . 34 58 . 72 Melee 18 | . . . . 18 Projectile 146 | . 34 58 . 54 AOE 1 | . . . . 1 Critical Strikes 8 | . . . . 8 Damage Taken 3255 | . 342 808 . 2105 Core 953 | . 71 171 . 711 Absorbed by Shields . | . . . . . Redirected to Shielding 51 | . . . . 51 Regen/Repaired (Parts) 173 | . 173 . . . Core Remaining (%) 51 | 100 . . 3 . Volleys Fired 96 | . 34 38 . 24 Largest 3 | . 2 2 . 3 Hottest 215 | . 46 110 . 215 Shots Fired 183 | . 68 66 . 49 Gun 163 | . 68 58 . 37 Cannon 12 | . . . . 12 Launcher 8 | . . 8 . . Special . | . . . . . Kinetic 143 | . 68 45 . 30 Thermal 32 | . . 13 . 19 Explosive 8 | . . 8 . . Electromagnetic . | . . . . . Robot Hit Streak 11 | . 11 11 . 9 Robot Miss Streak 4 | . 4 2 . 3 Penetration Max 1 | . . . . 1 Secondary Targets 3 | . 2 . . 1 Max Gunslinging Chain 1 | . 1 . . 1 Shots Hit Robots 123 | . 42 46 . 35 Core Hits 51 | . 17 23 . 11 Critical Kills . | . . . . . Critical Parts Destroyed 2 | . . . . 2 Critical Strikes 5 | . . 2 . 3 Burn 3 | . . 2 . 1 Destroy 2 | . . . . 2 Melee Attacks . | . . . . . Impact . | . . . . . Slashing . | . . . . . Piercing . | . . . . . Sneak Attacks . | . . . . . Combat Hostiles . | . . . . . Follow-up Attacks . | . . . . . Damage Inflicted 2811 | . 635 1023 . 1153 Guns 1935 | . 622 681 . 632 Cannons 172 | . . . . 172 Explosions 691 | . . 342 . 349 Melee . | . . . . . Ramming 13 | . 13 . . . Kinetic 1554 | . 622 462 . 470 Thermal 553 | . . 219 . 334 Explosive 691 | . . 342 . 349 Electromagnetic . | . . . . . Impact . | . . . . . Slashing . | . . . . . Piercing . | . . . . . Highest Corruption 4 | . 1 1 1 4 Average Corruption 1 | . 1 1 1 3 Corruption Purged . | . . . . . Corruption Blocked . | . . . . . Effects 9 | . . 5 4 . Matter Fused 1 | . . 1 . . Heat Flow Errors 1 | . . 1 . . Energy Discharges 3 | . . 2 1 . Data Loss (minor) 3 | . . . 3 . Data Loss (major) 1 | . . 1 . . Overload Shots 4 | . . . . 4 Effects 1 | . . . . 1 Short Circuit 1 | . . . . 1 Overflow Damage 90 | . . 13 . 77 Projectiles . | . . . . . Explosions 90 | . . 13 . 77 Melee . | . . . . . Knockbacks 1 | . 1 . . . Impact 1 | . 1 . . . Kinetic . | . . . . . Secondary . | . . . . . Self-Inflicted Damage 437 | . . 28 . 409 Shots 6 | . . 2 . 4 Rammed . | . . . . . Targets Rammed 5 | . 1 . . 4 Kicked 5 | . 1 . . 4 Crushed . | . . . . . Highest Temperature 492 | . 24 148 . 492 Average Temperature 95 | . 8 17 . 271 Received Heat Transfer 660 | . 66 249 . 345 Effects 1 | . . . . 1 Interference 1 | . . . . 1 Siege Activations . | . . . . . Martial Activations . | . . . . . Shielding Activations . | . . . . . Robots Disrupted . | . . . . . Combat Hostiles . | . . . . . Robots Corrupted . | . . . . . Combat Hostiles . | . . . . . Parts Fried . | . . . . . Impact Corruptions . | . . . . . Robots Melted . | . . . . . Combat Hostiles . | . . . . . Parts Melted . | . . . . . Heat Transferred 1236 | . . 544 . 692 Parts Sabotaged . | . . . . . Parts Stolen . | . . . . . Parts Stripped . | . . . . . Power Chain Reactions . | . . . . . Alert | -11 -10 -10 -9 -7 ------- Run | Yrd Mat Sub Rec Fac Maximum Alert Level . | . . . . . Low Security (%) 100 | 100 100 . 100 100 Level 1 . | . . . . . Level 2 . | . . . . . Level 3 . | . . . . . Level 4 . | . . . . . Level 5 . | . . . . . High Security . | . . . . . Max Security . | . . . . . Peak Influence 147 | . 89 . 22 147 Initial 50 | . . . 7 50 Average 20 | . 26 . 1 36 Influence Increases 965 | . 362 305 40 258 Destroy 0b10 Robot/C 500 | . 240 160 . 100 Destroy 0b10 Robot/NC 20 | . 15 . . 5 Destroy Leader 66 | . 46 10 . 10 Successful Hack 68 | . 28 . 40 . Disable Machine 60 | . . . . 60 Destroy Structure 36 | . 3 . . 33 Advance Influence 50 | . . . . 50 Lose Combat Pursuer 165 | . 30 135 . . Influence Decreases 957 | . 326 326 55 250 Entered New Map 26 | . . 18 8 . Time Decay 751 | . 316 278 47 110 Lost Part 180 | . 10 30 . 140 Squads Dispatched 3 | . 1 . . 2 Investigation 2 | . 1 . . 1 Extermination 1 | . . . . 1 Reinforcement . | . . . . . Assault . | . . . . . Garrison . | . . . . . Intercept . | . . . . . Searches Triggered . | . . . . . Construction Impeded . | . . . . . Haulers Reinforced . | . . . . . Active Scanning Responses . | . . . . . Cargo Convoy Interrupts . | . . . . . Stealth | -11 -10 -10 -9 -7 --------- Run | Yrd Mat Sub Rec Fac Distress Signals . | . . . . . Communications Jammed . | . . . . . Distress Signals . | . . . . . Times Spotted 46 | . 22 17 . 7 Peak Tracking Total 8 | . 4 8 . 4 Tactical Retreats 5 | . 2 3 . . Traps | -11 -10 -10 -9 -7 ------- Run | Yrd Mat Sub Rec Fac Traps Triggered 7 | . 5 . . 2 Indirectly . | . . . . . Trap Hack Attempts . | . . . . . Triggered . | . . . . . Disarmed . | . . . . . Reprogrammed . | . . . . . Reused . | . . . . . Traps Extracted . | . . . . . Installed . | . . . . . Triggered . | . . . . . Machines | -11 -10 -10 -9 -7 ---------- Run | Yrd Mat Sub Rec Fac Machines Disabled 7 | . . 3 . 4 Max in Single Turn 2 | . . 2 . 2 Machines Repaired . | . . . . . Machines Dismantled . | . . . . . Machines Sabotaged . | . . . . . Overloaded Fab Kills . | . . . . . Hacking | -11 -10 -10 -9 -7 --------- Run | Yrd Mat Sub Rec Fac Machines Accessed 16 | . 8 . 6 2 Terminals 12 | . 5 . 5 2 Fabricators . | . . . . . Repair Stations 1 | . 1 . . . Recycling Units 3 | . 2 . 1 . Scanalyzers . | . . . . . Garrison Access . | . . . . . Total Hacks 48 | . 25 . 18 5 Successful 25 | . 14 . 11 . Failed 23 | . 11 . 7 5 Catastrophic 4 | . 1 . 3 . Database Lockouts . | . . . . . Manual 12 | . 6 . 6 . Terminals 39 | . 18 . 16 5 Fabricators . | . . . . . Repair Stations 4 | . 4 . . . Recycling Units 5 | . 3 . 2 . Scanalyzers . | . . . . . Garrison Access . | . . . . . Terminal Hacks 16 | . 7 . 9 . Record 4 | . 3 . 1 . Part Schematic 1 | . . . 1 . Prototype ID Bank 2 | . . . 2 . Branch Access Points 1 | . . . 1 . Patrol Status 1 | . . . 1 . Transport Status 1 | . 1 . . . Intercept Status 1 | . . . 1 . Hauler Manifests 1 | . 1 . . . Zone Layout 4 | . 2 . 2 . Fabricator Hacks . | . . . . . Repair Station Hacks 4 | . 4 . . . Scan Component 2 | . 2 . . . Repair 2 | . 2 . . . Recycling Unit Hacks 5 | . 3 . 2 . Report Inventory 3 | . 2 . 1 . Retrieve Components 2 | . 1 . 1 . Scanalyzer . | . . . . . Garrison Access Hacks . | . . . . . Unauthorized Hacks . | . . . . . Terminals . | . . . . . Fabricators . | . . . . . Repair Stations . | . . . . . Recycling Units . | . . . . . Scanalyzers . | . . . . . Garrison Access . | . . . . . Data Cores Recovered . | . . . . . Used . | . . . . . Hacking Detections 14 | . 8 . 4 2 Full Trace Events 2 | . 1 . 1 . Feedback Events 1 | . 1 . . . Corruption 1 | . 1 . . . Feedback Blocked . | . . . . . Robot Schematics Acquired . | . . . . . Robots Built . | . . . . . Authchips . | . . . . . Time . | . . . . . Total Robot Build Rating . | . . . . . Part Schematics Acquired 1 | . . . 1 . Parts Built . | . . . . . Authchips . | . . . . . Time . | . . . . . Total Part Build Rating . | . . . . . Parts Repaired 2 | . 2 . . . Time 58 | . 58 . . . Parts Recycled . | . . . . . Recycled Matter . | . . . . . Retrieved Matter . | . . . . . Retrieved Components 7 | . 6 . 1 . Parts Scanalyzed . | . . . . . Part Schematics Acquired . | . . . . . Parts Damaged . | . . . . . Bothacking | -11 -10 -10 -9 -7 ------------ Run | Yrd Mat Sub Rec Fac Used RIF Installer . | . . . . . Robots Hacked . | . . . . . Non-combat . | . . . . . Combat . | . . . . . Robot Hacks Applied . | . . . . . Relay Couplers Released . | . . . . . Fabnet Peak Effective % . | . . . . . Robots Rewired . | . . . . . Allies Hacked . | . . . . . Hacks Repelled . | . . . . . Allies | -11 -10 -10 -9 -7 -------- Run | Yrd Mat Sub Rec Fac Total Allies . | . . . . . Largest Group . | . . . . . Highest-Rated Group . | . . . . . Highest-Rated Ally . | . . . . . Total Orders . | . . . . . Ally Attacks . | . . . . . Total Damage . | . . . . . Kills . | . . . . . Allies Corrupted . | . . . . . Allies Melted . | . . . . . Intel | -11 -10 -10 -9 -7 ------- Run | Yrd Mat Sub Rec Fac Active Infowar (turns) 1412 | . 1139 273 . . Sensors 936 | . 932 4 . . Structural 207 | . 207 . . . Machine Analysis 269 | . . 269 . . Robot Analysis Total . | . . . . . Derelict Logs Recovered 1 | . . 1 . . Drone Launches . | . . . . . Drone Recoveries . | . . . . . Exploration | -11 -10 -10 -9 -7 ------------- Run | Yrd Mat Sub Rec Fac Turns Passed 2858 | 99 1235 614 556 354 Spaces Moved 1779 | 72 777 385 336 209 Core 11 | 8 . . . 3 Treads . | . . . . . Legs 1768 | 64 777 385 336 206 Wheels . | . . . . . Hover . | . . . . . Flight . | . . . . . Fastest Speed 50 | 50 120 120 120 50 Average Speed 128 | 114 120 120 163 119 Slowest Speed 190 | 120 190 120 190 150 Overloaded Moves . | . . . . . Propulsion Burnouts . | . . . . . Robots Hopped . | . . . . . Potential Cave-ins . | . . . . . Cave-ins Triggered . | . . . . . Exploration Rate (%) 37 | 3 87 23 68 7 Regions Visited 4 Branch Regions 2 Pre-discovered Areas 1 | . . 1 . . Known Exits Taken . | . . . . . Unknown Exits Taken 4 | 1 1 1 1 . Scrap Searched . | . . . . . Spaces Dug . | . . . . . Terrain Destroyed 65 | . . 32 . 33 Melee . | . . . . . Projectile 1 | . . . . 1 AOE 64 | . . 32 . 32 Terrain Rammed . | . . . . . Walls Destroyed . | . . . . . Machines Disabled . | . . . . . Actions | -11 -10 -10 -9 -7 --------- Run | Yrd Mat Sub Rec Fac Total 2189 | 89 1013 474 345 268 Wait 185 | . 155 27 . 3 Move 1775 | 71 776 384 335 209 Hop . | . . . . . Pick Up 43 | 10 16 5 4 8 Fast Attach 16 | . 11 1 . 4 Attach 23 | 7 4 2 . 10 Detach 1 | 1 . . . . Swap 23 | . 6 13 2 2 Drop 22 | . 10 4 4 4 Fire 96 | . 34 38 . 24 Melee . | . . . . . Ram . | . . . . . Kick 5 | . 1 . . 4 Crush . | . . . . . Escape Stasis . | . . . . . Rewire . | . . . . . Trap . | . . . . . Miscellaneous . | . . . . . Route ------- -11/Scrapyard -10/Materials (discovered 4 exits: [*Mat x2] / [*Min] / [*Sub]) -10/Subcaves -9/Recycling -7/Factory History --------- Turn | Location | Event 6 | -11/Scrapyard | Discovered new exit (range 16) 100 | -11/Scrapyard | Entered Materials 304 | -10/Materials | Build established: Mutant 317 | -10/Materials | Discovered new exit (range 8) 516 | -10/Materials | Discovered new exit (range 9) 1044 | -10/Materials | Discovered new exit (range 9) 1086 | -10/Materials | Discovered new exit (range 15) 1130 | -10/Materials | Repaired Autogun 1157 | -10/Materials | Repaired Aluminum Leg 1335 | -10/Materials | Entered Subcaves 1336 | -10/Subcaves | Approached by a straggling Scientist 1379 | -10/Subcaves | Core integrity fell below 50% 1384 | -10/Subcaves | Discovered new exit (range 11) 1503 | -10/Subcaves | Shifting Twisted Machinery released Sub. Power Source 1534 | -10/Subcaves | Shifting Twisted Machinery released Flamer 1589 | -10/Subcaves | Core integrity fell below 20% 1600 | -10/Subcaves | Learned location of Zion (-7) 1637 | -10/Subcaves | Shifting Twisted Machinery released Mak. Laser 1731 | -10/Subcaves | A swath of the cavern ceiling suddenly collapsed 1901 | -10/Subcaves | A swath of the cavern ceiling suddenly collapsed 1949 | -10/Subcaves | Entered Recycling 2391 | -9/Recycling | Discovered new exit (range 16) 2505 | -9/Recycling | Entered Factory 2505 | -7/Factory | Evolved 6 slots: Propulsion x2, Utility x3, Weapon x1 2824 | -7/Factory | Core integrity fell below 50% 2859 | -7/Factory | Destroyed by exploding Fusion Modulator Last Messages --------------- Acquired Slug Cannon. Broken Mak. Laser destroyed. G-47 Trooper suffers critical hit (Destroy). Destroyed Lgt. Nuclear Core. R-06 Scavenger collects Microactuators. Mak. Light Armor Plating destroyed. R-06 Scavenger collects Mace. Acquired Imp. Carbon-fiber Leg. Overheating: System interference. Slug Cannon temporarily disabled. Slug Cannon destroyed. R-06 Scavenger collects Rnf. Deuterium Engine. Kicked R-06 Scavenger. Kicked P-60 Hacker out of the way. Acquired 107 matter. Kicked P-60 Hacker. Fusion Modulator explodes. Imp. Carbon-fiber Leg destroyed. P-60 Hacker destroyed. Fusion Modulator explodes. Map ----- +----------------------------------------------------+ | ?????????????????????????????????????# ! | | ?????????????????????????????????????##########+## | | ????????????????????????????????????????????# | | ????????????????????????????????????????????# | | ????????????????????????????????????????????# | | ????????????????????????????????????????????# | | ???????????????????????????????############## | | ???????????????????????????????# ! # | | ???????????????????????????????# # | | ???????????????????????????????# """"""""" # | | ???????????????????????????????# # | | ???????????????????????????????# """"""""" # | | ???????????????????????????????# + | | ???????????????????????????????# """"""""" # | | ???????????????????????????????# # | | ???????????????????????????????# """"""""" # | | ?????????????????????####??????# # | | ????????????????###### # ##????# """"""""" # | | ???????????????## ###??# # | | ???????????????# #; ; ;################# | | ????????????????#; # ??????# | | ????????????????#; # ????######+# | | ????????????????#; #? ???# | | ???????????????# # #? ??# | | ????????????????#; #?? ?## | | ????????????????#; @ * #?? # | | ??????????????#####; ;;; g ;##;## # | | ????????????+ #####+###??# # | | ????????????# r r #??## | | ????????????# ###### | | ????????????+ ! | | ????????????# ! ]] ##### | | ????????????# ] #???# | | ????????????# """ """ #???# | | ????????????# ##### """ """ #???### | | ????????????? ?????# """ """ #?????####### | | ????????????? ??????# #??????????? | | ?????????????????????# ?????????? | | ?????????????????????# ????????? | | ?????????????????????# ???????? | | ?????????????????????# ??????? | | ?????????????????????#?? "" "??????? | | ???????????????????????? "" ???????? | | ?????????????????????????#+### ?T ????????? | | ?????????????????????????????# ?" ?????????? | | ?????????????????????????????? ?? ???????????? | | ?????????????????????????????????????????????????? | | ?????????????????????????????????????????????????? | | ?????????????????????????????????????????????????? | | ?????????????????????????????????????????????????? | +----------------------------------------------------+ Best States ------------- Heat Dissipation 61 Energy Generation 15 Energy Capacity 300 Matter Stores 300 Matter Capacity 300 Sight Range 16 Robot Scan Range 14 Terrain Scan Density 10 Armor Coverage 100 Propulsion Shielding 33 Evasion (%) 55 Item Schematics ----------------- Adv. Assault Cannon | -9/Recycling | Hacked Robot Schematics ------------------ None Fabricated ------------ Nothing Repaired ---------- Autogun | 10% | -10/Materials Aluminum Leg | 22% | -10/Materials Alien Tech Used ----------------- None Achievements -------------- None Challenges ------------ None Game ------ Seed NovaEnergyCore Manual? 0 Play Time 00:34:11 Cumulative 18.0 hours Start 2025.07.10 @ 20:01:04 End 2025.07.10 @ 20:34:13 Sessions 1 Manual Loads 0 Difficulty Rogue Special Mode None Game No. 11 Rogue 11 Adventurer 0 Explorer 0 Win Type - Total 0 Types 0/0/0/0/0/0/0/0/0/0 Lore% 6 Gallery% 19 Achievement% 17 Wizard Run 0 Options --------- Layout 1 ASCII 0 Keyboard 0 Movement Mouse Keybinds 0 Fullscreen 1 Font 24/Smallcaps Map View 50x35 Zoom Use 0% Tactical HUD 0 Map Filters NONE Filters NONE Steam 1 RUN: 187f081c-d2e4-4f5c-a252-52af3739ea48